bitfinex-derivatives/quotes_ETHF0:USTF0_20210402
["timestamp","ask_amount","ask_price","bid_price","bid_amount"]
[1617355011687,5.58995,1989.7,1989.6,2.90695]
[1617355014190,67.16985,1989.7,1989.6,2.90695]
[1617355016392,1.0043,1989.7,1989.6,2.90695]
[1617355016593,1.0043,1989.7,1989.6,4.57725]
[1617355017593,5.88005,1989.7,1989.6,2.90695]
[1617355017793,4.87585,1989.7,1989.6,2.90695]
[1617355024707,3.87165,1989.7,1989.6,2.90695]
[1617355025806,3.90275,1989.7,1989.6,2.90695]
[1617355027006,5.32095,1989.7,1989.6,2.90695]
[1617355028611,5.32095,1989.7,1989.6,2.22725]
[1617355028815,5.32095,1989.7,1989.1,0.0014]
[1617355029010,30.0,1989.6,1989.1,0.0014]
[1617355029614,2.90695,1989.2,1989.1,0.0014]
[1617355029812,34.73265,1989.2,1989.1,0.0014]
[1617355030211,4.73265,1989.2,1989.1,0.0014]
[1617355030412,5.59751526,1989.2,1989.1,0.0014]
[1617355030812,6.59591526,1989.2,1989.1,0.0014]
[1617355031214,7.52282765,1989.2,1989.1,0.0014]
[1617355031812,6.51862765,1989.2,1989.1,0.0014]
[1617355034316,5.59171526,1989.2,1989.1,0.0014]
[1617355037617,35.59171526,1989.2,1989.1,0.0014]
[1617355038418,36.77659124,1989.2,1989.1,0.0014]
[1617355038819,35.77239124,1989.2,1989.1,0.0014]
[1617355039021,36.93302447,1989.2,1989.1,0.0014]
[1617355039419,35.77239124,1989.2,1989.1,0.0014]
[1617355039620,33.72265,1989.2,1989.1,0.0014]
[1617355039820,3.72265,1989.2,1989.1,0.0014]
[1617355040021,33.72265,1989.2,1989.1,0.0014]
[1617355040222,3.72265,1989.2,1989.1,0.0014]
[1617355041022,33.72265,1989.2,1989.1,0.0014]
[1617355041624,3.72265,1989.2,1989.1,0.0014]
[1617355041824,1.89695,1989.2,1989.1,0.0014]
[1617355045133,31.89695,1989.2,1989.1,0.0014]
[1617355045731,30.89275,1989.2,1989.1,0.0014]
[1617355046132,31.81962403,1989.2,1989.1,0.0014]
[1617355047631,34.72657403,1989.2,1989.1,0.0014]
[1617355048232,30.0,1989.0,1988.6,2.81635]
[1617355048633,0.28960742,1988.7,1988.6,2.81635]
[1617355049234,0.28965453,1988.8,1988.6,2.81635]
[1617355049533,0.2896362,1988.7,1988.6,2.81635]
[1617355049733,4.7213862,1988.7,1988.6,1.56155]
[1617355049934,4.7213862,1988.7,1988.6,0.73205]
[1617355050536,4.7213862,1988.7,1988.6,5e-05]
[1617355051336,4.43175,1988.7,1988.6,5e-05]
[1617355051738,4.43175,1988.7,1988.4,2.90695]
[1617355052737,3.42755,1988.7,1988.4,2.90695]
[1617355053241,3.42755,1988.7,1987.9,56.7532]
[1617355053644,1.5248,1988.7,1988.0,2.90695]
[1617355055040,0.28898452,1988.8,1988.0,2.90695]
[1617355055239,2.28898452,1988.8,1988.0,2.90695]
[1617355055440,30.0,1988.7,1988.0,2.90695]
[1617355055639,2.90695,1988.1,1988.0,2.90695]
[1617355055841,4.84105,1988.1,1988.0,2.90695]
[1617355056440,4.84105,1988.1,1986.3,32.0]
[1617355056640,83.8538,1987.3,1986.3,32.0]
[1617355057244,83.8538,1987.3,1986.4,30.0]
[1617355057442,83.8538,1987.3,1986.5,2.0]
[1617355057641,83.8538,1987.3,1987.2,2.90695]
[1617355057841,84.8723,1987.3,1987.2,2.90695]
[1617355059752,83.8681,1987.3,1987.2,2.90695]
[1617355064653,82.8496,1987.3,1987.2,2.90695]
[1617355065856,82.8496,1987.3,1987.2,4.69145]
[1617355066753,81.8454,1987.3,1987.2,4.69145]
[1617355067254,81.8454,1987.3,1987.2,2.90695]
[1617355073863,80.8412,1987.3,1987.2,2.90695]
[1617355077167,2.90695,1987.8,1987.2,2.90695]
[1617355077967,2.90695,1987.8,1987.7,2.90695]
[1617355082072,2.90695,1987.8,1987.7,4.58945]
[1617355084483,1.0207,1988.1,1987.7,4.58945]
[1617355085177,70.2593,1988.2,1987.7,4.58945]
[1617355085576,2.514749,1990.3,1987.7,4.58945]
[1617355085577,0.28804572,1989.1,1987.7,4.58945]
[1617355085777,76.7695,1988.6,1987.7,4.58945]
[1617355085978,76.7695,1988.6,1988.2,2.90695]
[1617355086180,63.9184,1988.6,1988.2,4.64005]
[1617355086581,0.28831989,1989.3,1988.2,4.64005]
[1617355086781,74.8883,1988.9,1988.2,4.64005]
[1617355087982,74.8883,1988.9,1988.7,2.90695]
[1617355088785,73.8835,1988.9,1988.7,2.90695]
[1617355089986,2.90695,1988.8,1988.7,2.90695]
[1617355092886,1.90215,1988.8,1988.7,2.90695]
[1617355095887,73.8835,1988.9,1988.7,4.49975]
[1617355096989,2.90695,1989.1,1988.7,4.49975]
[1617355097192,2.90695,1989.1,1988.8,70.9927]
[1617355098089,2.90695,1989.1,1989.0,2.90695]
[1617355099791,1.90215,1989.1,1989.0,2.90695]
[1617355102792,0.89735,1989.1,1989.0,2.90695]
[1617355104998,75.2459,1989.7,1989.0,2.90695]
[1617355106000,2.90695,1989.7,1989.6,2.90695]
[1617355106200,2.90695,1989.7,1989.6,4.47265]
[1617355106400,3.90465,1989.7,1989.6,4.47265]
[1617355106800,1.90215,1989.7,1989.6,4.47265]
[1617355109805,0.92215,1989.7,1989.6,4.47265]
[1617355110005,0.92215,1989.7,1989.6,2.90695]
[1617355110205,0.92215,1989.7,1989.2,60.4516]
[1617355110405,0.92215,1989.7,1989.1,1.2474]
[1617355110605,84.0379,1989.6,1989.1,1.2474]
[1617355112006,84.0379,1989.6,1989.5,2.90695]
[1617355113609,84.0379,1989.6,1989.5,4.22285]
[1617355113809,83.0331,1989.6,1989.5,4.22285]
[1617355120821,82.0283,1989.6,1989.5,4.22285]
[1617355124326,82.0283,1989.6,1989.5,2.90695]
[1617355127929,82.0029,1989.6,1989.5,2.90695]
[1617355129231,0.28970382,1989.8,1989.5,2.90695]
[1617355130232,0.28970382,1989.8,1989.7,2.90695]
[1617355133435,1.30290382,1989.8,1989.7,2.90695]
[1617355135435,0.28970382,1989.8,1989.7,2.90695]
[1617355139141,0.4631985,1989.8,1989.7,2.90695]
[1617355141747,0.28953934,1989.8,1989.7,2.90695]
[1617355144050,0.46311419,1989.8,1989.7,2.90695]
[1617355144448,0.28947676,1989.8,1989.7,2.90695]
[1617355145148,0.46320061,1989.8,1989.7,2.90695]
[1617355145748,0.28949575,1989.8,1989.7,2.90695]
[1617355146851,0.46344714,1989.8,1989.7,2.90695]
[1617355147050,1.47424714,1989.8,1989.7,2.90695]
[1617355149153,0.46344714,1989.8,1989.7,2.90695]
[1617355149451,0.28969441,1989.8,1989.7,2.90695]
[1617355149851,0.46347654,1989.8,1989.7,2.90695]
[1617355150252,1.46687654,1989.8,1989.7,2.90695]
[1617355152455,1.0034,1989.8,1989.7,2.90695]
[1617355156460,3.0034,1989.8,1989.7,2.90695]
[1617355158066,3.70033271,1989.8,1989.7,2.90695]
[1617355158662,1.70033271,1989.8,1989.7,2.90695]
[1617355160563,1.0034,1989.8,1989.7,2.90695]
[1617355162165,1.46857158,1989.8,1989.7,2.90695]
[1617355163567,1.0034,1989.8,1989.7,2.90695]
[1617355164969,60.1572,1989.8,1989.7,2.90695]
[1617355165371,61.34167955,1989.8,1989.7,2.90695]
[1617355166469,62.50840841,1989.8,1989.7,2.90695]
[1617355168374,61.34167955,1989.8,1989.7,2.90695]
[1617355168973,62.50835279,1989.8,1989.7,2.90695]
[1617355170276,64.50835279,1989.8,1989.7,2.90695]
[1617355171775,63.34167955,1989.8,1989.7,2.90695]
[1617355172174,64.50849073,1989.8,1989.7,2.90695]
[1617355173075,5.35469073,1989.8,1989.7,2.90695]
[1617355173277,3.35469073,1989.8,1989.7,2.90695]
[1617355173675,1.0034,1989.8,1989.7,2.90695]
[1617355175079,3.04796357,1989.8,1989.7,2.90695]
[1617355175278,5.04796357,1989.8,1989.7,2.90695]
[1617355177279,5.04796357,1989.8,1989.7,2.74805]
[1617355180285,3.04796357,1989.8,1989.7,2.00065]
[1617355180887,3.04796357,1989.8,1989.5,2.90695]
[1617355181185,1.16713849,1989.6,1989.5,2.90695]
[1617355181985,0.88835036,1989.7,1989.5,2.90695]
[1617355181986,3.8141532,1989.7,1989.5,2.90695]
[1617355182388,0.88834404,1989.6,1989.5,2.90695]
[1617355182787,3.79529404,1989.6,1989.5,2.90695]
[1617355182987,4.95607892,1989.6,1989.5,2.90695]
[1617355183389,5.84441587,1989.6,1989.5,2.90695]
[1617355183787,3.79528695,1989.6,1989.5,2.90695]
[1617355184187,7.07996713,1989.6,1989.5,2.90695]
[1617355185895,5.03048695,1989.6,1989.5,2.90695]
[1617355186888,7.08111294,1989.6,1989.5,2.90695]
[1617355187288,5.03048695,1989.6,1989.5,2.90695]
[1617355191097,3.79528695,1989.6,1989.5,2.90695]
[1617355191495,5.84500716,1989.6,1989.5,2.90695]
[1617355197506,3.79528695,1989.6,1989.5,2.90695]
[1617355198107,4.97974646,1989.6,1989.5,2.90695]
[1617355198510,9.02466888,1989.6,1989.5,2.90695]
[1617355198708,39.02466888,1989.6,1989.5,1.66545]
[1617355198910,33.79528695,1989.6,1989.3,2.90695]
[1617355199109,68.291,1989.5,1989.3,2.90695]
[1617355199711,39.03961796,1989.4,1987.8,60.4685]
[1617355200111,0.01458574,1988.1,1987.8,60.4685]
[1617355200310,0.01458574,1988.1,1987.7,2.0]
[1617355200311,79.85668574,1988.1,1987.7,2.0]
[1617355200911,0.0145862,1988.0,1987.7,2.0]
[1617355201113,0.0145862,1988.0,1987.9,2.90695]
[1617355204016,0.46672679,1988.5,1987.9,2.90695]
[1617355204017,0.01459919,1988.1,1987.9,2.90695]
[1617355204214,0.01459919,1988.1,1987.9,4.90695]
[1617355205415,0.01460294,1988.2,1987.9,4.90695]
[1617355206022,0.0146026,1988.1,1987.9,4.90695]
[1617355206620,0.0146026,1988.1,1988.0,85.4383]
[1617355207219,0.46728308,1988.6,1988.0,85.4383]
[1617355207220,0.01460408,1988.2,1988.0,116.7924]
[1617355207620,0.01460709,1988.3,1988.0,116.7924]
[1617355207820,0.01460893,1988.4,1988.0,116.7924]
[1617355208220,0.01460756,1988.3,1988.0,116.7924]
[1617355208430,0.01460756,1988.3,1988.0,86.7924]
[1617355208634,0.01460756,1988.3,1987.9,2.90695]
[1617355208836,74.9878,1988.1,1987.9,2.90695]
[1617355209025,75.00240122,1988.1,1987.9,2.90695]
[1617355209429,74.9878,1988.1,1987.9,4.90695]
[1617355209627,0.01460248,1988.2,1987.9,4.90695]
[1617355209820,0.01460248,1988.2,1988.1,82.1514]
[1617355210022,0.01460783,1988.3,1988.1,84.1514]
[1617355210425,0.01460991,1988.4,1988.1,84.1514]
[1617355211124,0.01460991,1988.4,1988.3,2.90695]
[1617355211324,0.01460991,1988.4,1988.3,6.71395]
[1617355214227,0.01461237,1988.5,1988.3,6.71395]
[1617355215228,0.01461237,1988.5,1988.4,77.401]
[1617355215926,0.01461237,1988.5,1988.4,2.0]
[1617355216126,0.05845094,1988.6,1988.3,2.90695]
[1617355216541,0.29207572,1988.5,1988.3,2.90695]
[1617355216927,0.29195581,1988.4,1988.3,2.90695]
[1617355217327,0.46710514,1988.4,1988.3,2.90695]
[1617355217941,0.70048254,1988.5,1988.3,2.90695]
[1617355219029,0.29155686,1988.4,1988.3,2.90695]
[1617355221430,0.46643687,1988.4,1988.3,2.90695]
[1617355222033,0.29155647,1988.4,1988.3,2.90695]
[1617355222434,0.46640717,1988.4,1988.3,2.90695]
[1617355224733,0.46640717,1988.4,1987.1,2.0]
[1617355224934,81.7737,1987.4,1987.1,2.0]
[1617355225334,83.4038,1987.4,1987.3,2.90695]
[1617355225933,84.3967,1987.4,1987.3,2.90695]
[1617355226134,83.4038,1987.4,1987.3,2.90695]
[1617355228641,1.6301,1987.4,1987.3,2.90695]
[1617355230342,0.01452966,1987.7,1987.3,2.90695]
[1617355231340,0.01452966,1987.7,1986.3,2.0]
[1617355231341,0.01452966,1987.7,1987.6,2.90695]
[1617355233342,2.92147966,1987.7,1987.6,2.90695]
[1617355233943,0.01452966,1987.7,1987.6,2.90695]
[1617355234542,83.94382966,1987.7,1987.6,2.90695]
[1617355235242,83.9293,1987.7,1987.6,2.90695]
[1617355236045,83.94383288,1987.7,1987.6,2.90695]
[1617355236446,83.9293,1987.7,1987.6,2.90695]
[1617355237249,83.94382915,1987.7,1987.6,2.90695]
[1617355239951,85.85242915,1987.7,1987.6,2.90695]
[1617355241052,85.8379,1987.7,1987.6,2.90695]
[1617355243956,1.9086,1987.7,1987.6,2.90695]
[1617355244157,31.9086,1987.7,1987.6,0.77885]
[1617355244356,31.9086,1987.7,1987.6,5e-05]
[1617355245356,31.9086,1987.7,1985.8,2.0]
[1617355245561,95.453,1987.5,1986.9,2.90695]
[1617355245758,0.0144966,1987.4,1986.9,2.90695]
[1617355246558,0.01449464,1987.3,1986.9,2.90695]
[1617355246757,1.70379464,1987.3,1986.9,2.90695]
[1617355247359,0.01449075,1987.2,1986.9,2.90695]
[1617355247561,2.90695,1987.0,1986.9,1.95765]
[1617355248560,32.90695,1987.0,1986.9,1.95765]
[1617355248960,32.90695,1987.0,1986.9,0.95365]
[1617355249561,2.0,1986.9,1985.6,83.8111]
[1617355249778,30.0,1986.8,1985.6,83.8111]
[1617355249966,2.0,1986.7,1985.6,76.3094]
[1617355250164,83.1954,1985.6,1984.1,2.571]
[1617355250562,30.0,1985.5,1982.8,5.13952514]
[1617355250763,30.0,1985.3,1983.5,2.0]
[1617355250973,30.0,1985.3,1982.9,1.0227]
[1617355251169,30.0,1985.3,1982.3,5.30185669]
[1617355251170,2.0,1985.2,1982.3,4.12425205]
[1617355251362,68.6338,1984.5,1982.3,4.12425205]
[1617355251563,2.90695,1984.5,1983.6,4.90695]
[1617355251964,34.39685,1984.5,1983.6,4.90695]
[1617355252163,34.39685,1984.5,1983.6,4.78765]
[1617355252371,34.39685,1984.5,1983.6,0.6267]
[1617355252563,35.39735,1984.5,1983.6,0.6267]
[1617355252764,30.0,1984.3,1983.6,0.6267]
[1617355253576,2.90695,1983.7,1983.6,0.6267]
[1617355253765,4.67855,1983.7,1983.6,0.6267]
[1617355254963,1.7716,1983.7,1983.6,0.6267]
[1617355255564,4.67855,1983.7,1983.6,3.53365]
[1617355255764,4.67855,1983.7,1983.6,0.6267]
[1617355257571,62.55225,1983.7,1983.6,0.6267]
[1617355257774,62.55225,1983.7,1983.6,0.0001]
[1617355257970,63.57005,1983.7,1983.6,0.0001]
[1617355258171,62.55225,1983.7,1983.6,0.0001]
[1617355258968,1.7716,1983.7,1983.6,0.0001]
[1617355259169,79.376,1984.8,1983.6,1.6131]
[1617355259586,79.376,1984.8,1984.1,2.90695]
[1617355259771,1.0214,1985.2,1984.1,4.84205]
[1617355259970,12.8388,1985.1,1984.1,4.84205]
[1617355261472,12.8388,1985.1,1985.0,2.90695]
[1617355261671,12.8388,1985.1,1985.0,4.12135]
[1617355262072,86.6266,1985.9,1985.0,1.2144]
[1617355262672,86.6266,1985.9,1984.0,66.8765]
[1617355262872,30.0,1985.9,1982.9,3.2655]
[1617355263071,30.0,1985.0,1982.9,1.2655]
[1617355263272,31.0217,1985.0,1982.9,1.2655]
[1617355263674,31.0217,1985.0,1983.6,2.90695]
[1617355263875,1.0217,1985.0,1983.6,2.90695]
[1617355265672,1.0217,1985.0,1984.3,4.63885]
[1617355266075,13.8805,1985.2,1984.3,4.63885]
[1617355266271,13.8805,1985.2,1984.3,1.7319]
[1617355266874,64.6373,1985.7,1984.3,1.7319]
[1617355267073,63.6334,1985.7,1984.3,1.7319]
[1617355267674,63.6334,1985.7,1984.9,2.90695]
[1617355268073,2.52065173,1985.6,1984.9,2.90695]
[1617355268475,32.52065173,1985.6,1983.8,76.7742]
[1617355268677,33.89815173,1985.6,1983.8,76.7742]
[1617355268874,3.89815173,1985.6,1983.8,76.7742]
[1617355269674,3.89815173,1985.6,1984.6,2.90695]
[1617355269874,2.52065173,1985.6,1984.6,2.90695]
[1617355270075,2.52065173,1985.6,1984.6,4.53685]
[1617355270274,0.9954,1985.8,1984.6,4.53685]
[1617355270475,14.7692,1985.9,1984.6,63.56365]
[1617355271675,29.2677,1986.6,1985.7,2.90695]
[1617355271875,29.2677,1986.6,1985.7,4.39145]
[1617355272977,14.4271,1986.6,1985.7,4.39145]
[1617355273578,14.4271,1986.6,1986.3,2.90695]
[1617355273978,13.4232,1986.6,1986.3,4.79625]
[1617355274379,44.7603,1987.4,1986.3,1.8893]
[1617355274780,14.7603,1987.4,1986.3,1.8893]
[1617355275780,14.7603,1987.4,1986.6,2.90695]
[1617355276683,14.7603,1987.4,1986.3,1.8893]
[1617355277483,14.7603,1987.4,1985.7,1.4845]
[1617355277682,15.7814,1987.4,1986.2,2.90695]
[1617355277883,14.7603,1987.4,1986.2,4.12275]
[1617355279283,14.7603,1987.4,1986.2,1.2158]
[1617355279684,14.7603,1987.4,1986.5,2.90695]
[1617355280284,14.7603,1987.4,1986.2,1.2158]
[1617355281084,13.7564,1987.4,1986.2,1.2158]
[1617355281285,13.7564,1987.4,1985.7,1.6813]
[1617355281687,13.7564,1987.4,1986.6,2.90695]
[1617355283686,2.90695,1986.7,1986.6,2.90695]
[1617355285590,2.90695,1986.7,1986.1,1.4934]
[1617355285791,13.7564,1987.4,1986.6,2.90695]
[1617355285991,13.7564,1987.4,1986.1,1.4934]
[1617355286193,13.7564,1987.4,1985.7,33.6813]
[1617355286591,13.7564,1987.4,1985.7,31.6813]
[1617355286793,43.7564,1987.4,1985.0,2.0]
[1617355286991,43.7564,1987.4,1977.8,11.59553597]
[1617355286992,30.0,1986.7,1984.4,82.4626]
[1617355287192,31.0143,1986.7,1984.4,82.4626]
[1617355287791,2.90695,1985.4,1985.0,2.90695]
[1617355287991,3.36775,1985.4,1985.0,2.90695]
[1617355289794,2.90695,1985.1,1984.7,2.90695]
[1617355291796,1.4647,1985.4,1984.7,2.90695]
[1617355292196,1.4647,1985.4,1984.8,2.0]
[1617355292396,67.339,1985.6,1984.8,2.0]
[1617355292599,67.339,1985.6,1984.8,3.8014]
[1617355292999,67.339,1985.6,1984.8,1.8014]
[1617355293400,31.0029,1986.3,1984.8,1.8014]
[1617355293800,1.0029,1986.3,1985.3,2.90695]
[1617355294002,1.0029,1986.3,1985.3,4.37615]
[1617355294201,30.0,1986.5,1985.3,4.37615]
[1617355295202,74.5627,1986.7,1985.3,4.37615]
[1617355295401,43.8276,1986.6,1985.3,4.37615]
[1617355295802,43.8276,1986.6,1985.7,2.90695]
[1617355297802,2.90695,1985.8,1985.7,2.90695]
[1617355301909,2.90695,1986.0,1985.7,2.90695]
[1617355302108,1.90305,1986.0,1985.7,2.90695]
[1617355302312,13.8276,1986.6,1985.7,2.90695]
[1617355303908,13.8276,1986.6,1986.5,2.90695]
[1617355304109,13.8276,1986.6,1986.5,4.43965]
[1617355304309,57.9668,1987.5,1986.5,4.43965]
[1617355304710,44.7211,1987.4,1986.5,4.43965]
[1617355305111,44.7211,1987.4,1986.5,3.87945]
[1617355305809,44.7211,1987.4,1986.7,2.90695]
[1617355306010,46.7211,1987.4,1986.7,2.90695]
[1617355306211,14.7211,1987.4,1986.7,2.90695]
[1617355307916,14.7211,1987.4,1987.1,2.90695]
[1617355308115,1.0094,1987.5,1987.1,4.77545]
[1617355309019,0.0055,1987.5,1987.1,4.77545]
[1617355310019,2.90695,1987.2,1987.1,4.77545]
[1617355313540,0.0055,1987.5,1987.1,4.77545]
[1617355313923,0.0055,1987.5,1987.4,2.90695]
[1617355315323,2.90695,1987.6,1987.4,2.90695]
[1617355316124,1.90305,1987.6,1987.4,2.90695]
[1617355323127,0.89915,1987.6,1987.4,2.90695]
[1617355328830,0.89915,1987.6,1985.5,30.0]
[1617355329030,74.2738,1987.5,1986.0,57.7981]
[1617355329231,75.2686,1987.5,1986.0,57.7981]
[1617355329431,75.2686,1987.5,1986.1,2.0]
[1617355330031,75.2686,1987.5,1987.2,2.90695]
[1617355330834,0.9948,1987.5,1987.2,2.90695]
[1617355331033,0.9955,1988.0,1987.2,4.34585]
[1617355331236,1.0098936,1988.0,1987.2,4.34585]
[1617355331935,0.9955,1988.0,1987.2,4.34585]
[1617355332135,2.90695,1987.3,1987.2,4.34585]
[1617355333939,0.9955,1988.0,1987.2,4.34585]
[1617355334140,2.90695,1987.7,1987.6,2.90695]
[1617355336040,4.53875,1987.7,1987.3,2.90695]
[1617355336240,4.53875,1987.7,1986.8,58.9724]
[1617355338143,1.6318,1987.7,1987.5,2.90695]
[1617355338343,0.9955,1988.0,1987.5,2.90695]
[1617355340143,2.90695,1987.6,1987.2,2.90695]
[1617355340344,4.68235,1987.6,1987.2,2.90695]
[1617355342144,2.90695,1987.3,1987.2,2.90695]
[1617355370274,2.90695,1987.5,1987.2,2.90695]
[1617355372374,2.90695,1987.5,1987.4,2.90695]
[1617355377479,2.921401,1987.5,1987.4,2.90695]
[1617355377879,2.93585088,1987.5,1987.4,2.90695]
[1617355380184,0.02890088,1987.5,1987.4,2.90695]
[1617355383787,1.02570088,1987.5,1987.4,2.90695]
[1617355383986,1.28570443,1987.5,1987.4,2.90695]
[1617355385187,1.43016194,1987.5,1987.4,2.90695]
[1617355385388,1.14125751,1987.5,1987.4,2.90695]
[1617355385887,1.28571585,1987.5,1987.4,2.90695]
[1617355386287,1.14127468,1987.5,1987.4,2.90695]
[1617355386889,0.14447468,1987.5,1987.4,2.90695]
[1617355387293,66.20198683,1987.6,1987.4,2.90695]
[1617355387489,65.91303747,1987.6,1987.4,2.90695]
[1617355388291,0.92896142,1987.5,1987.4,4.55195]
[1617355388490,1.92496142,1987.5,1987.4,4.55195]
[1617355388690,0.996,1987.5,1987.4,4.55195]
[1617355388994,0.92890382,1987.5,1987.4,4.55195]
[1617355389393,1.95984642,1987.6,1987.4,4.55195]
[1617355389394,2.888815,1987.6,1987.4,4.55195]
[1617355390193,2.888815,1987.6,1987.4,2.90695]
[1617355390395,0.92897769,1987.5,1987.4,2.90695]
[1617355393703,3.12064534,1987.6,1987.4,2.90695]
[1617355394303,1.16079709,1987.5,1987.4,2.90695]
[1617355394505,2.16979709,1987.5,1987.4,2.90695]
[1617355394704,4.19079649,1987.6,1987.4,2.90695]
[1617355396508,0.92879849,1987.5,1987.4,2.90695]
[1617355397609,3.02999177,1987.6,1987.4,2.90695]
[1617355397610,4.19100906,1987.6,1987.4,2.90695]
[1617355398011,0.92893587,1987.5,1987.4,2.90695]
[1617355398411,1.93623587,1987.5,1987.4,2.90695]
[1617355398716,1.0073,1987.5,1987.4,2.90695]
[1617355399012,0.92892165,1987.5,1987.4,2.90695]
[1617355399411,4.19114943,1987.6,1987.4,2.90695]
[1617355399811,5.06745441,1987.6,1987.4,2.90695]
[1617355400812,1.16311972,1987.5,1987.4,2.90695]
[1617355401012,2.17631972,1987.5,1987.4,2.90695]
[1617355401212,1.17141972,1987.5,1987.4,2.90695]
[1617355401814,1.0132,1987.5,1987.4,2.90695]
[1617355402514,5.06834537,1987.6,1987.4,2.90695]
[1617355408221,2.0379987,1987.5,1987.4,2.90695]
[1617355409221,3.0479987,1987.5,1987.4,2.90695]
[1617355409822,2.0379987,1987.5,1987.4,2.90695]
[1617355411622,3.0498987,1987.5,1987.4,2.90695]
[1617355412123,2.0379987,1987.5,1987.4,2.90695]
[1617355414429,2.0379987,1987.5,1986.8,68.0243]
[1617355414627,4.0379987,1987.5,1985.8,30.0]
[1617355414828,2.90695,1986.9,1985.8,30.0]
[1617355415229,1.90205,1986.9,1985.8,30.0]
[1617355415430,0.01453077,1985.9,1985.8,30.0]
[1617355415829,0.01453077,1985.9,1985.8,32.0]
[1617355416829,0.01453077,1985.9,1985.8,34.90695]
[1617355417230,0.01453164,1986.0,1985.8,34.90695]
[1617355418429,0.0435994,1986.1,1985.8,34.90695]
[1617355418630,0.01453612,1986.1,1985.8,34.90695]
[1617355418830,0.01453612,1986.1,1986.0,2.90695]
[1617355419030,0.01453612,1986.1,1986.0,4.90695]
[1617355419231,0.02906864,1986.1,1986.0,34.90695]
[1617355421751,0.01453661,1986.1,1986.0,34.90695]
[1617355422342,0.63773742,1986.8,1986.0,34.90695]
[1617355422958,0.93045272,1987.1,1986.7,2.90695]
[1617355424943,0.93045272,1987.1,1987.0,2.90695]
[1617355425846,0.93050293,1987.2,1987.0,2.90695]
[1617355428349,0.93050293,1987.2,1987.1,76.0956]
[1617355429250,1.16312867,1987.4,1987.1,76.0956]
[1617355431254,1.16312867,1987.4,1987.3,2.90695]
[1617355432256,1.1641055,1987.6,1987.3,2.90695]
[1617355432856,1.16433004,1987.7,1987.6,83.5602]
[1617355433255,1.16433004,1987.7,1987.6,86.46715]
[1617355433458,1.16454605,1987.8,1987.6,86.46715]
[1617355434958,1.16479043,1987.9,1987.6,86.46715]
[1617355435158,1.16507994,1988.0,1987.8,2.90695]
[1617355435660,1.163688,1988.2,1987.8,2.90695]
[1617355436262,1.16405689,1988.3,1987.8,2.90695]
[1617355437063,71.3876,1988.1,1987.8,2.90695]
[1617355437284,71.3876,1988.1,1988.0,2.90695]
[1617355437665,1.18536498,1988.1,1988.0,2.90695]
[1617355438464,3.93079842,1988.7,1988.0,79.49285]
[1617355438465,3.05838806,1988.7,1988.0,79.49285]
[1617355438671,3.03548806,1988.7,1988.0,79.49285]
[1617355439067,2.04089009,1988.6,1988.0,79.49285]
[1617355439264,3.05429009,1988.6,1988.5,2.90695]
[1617355440164,1.0134,1988.6,1988.5,2.90695]
[1617355440565,3.03627306,1988.7,1988.5,2.90695]
[1617355441165,0.9945,1988.7,1988.5,2.90695]
[1617355441667,4.94923997,1988.8,1988.5,2.90695]
[1617355442765,5.95603997,1988.8,1988.5,2.90695]
[1617355443065,3.04908997,1988.8,1988.5,2.90695]
[1617355443265,2.04418997,1988.8,1988.7,2.90695]
[1617355444166,1.0068,1988.8,1988.7,2.90695]
[1617355444366,1.18523859,1989.1,1988.7,2.90695]
[1617355445168,1.18523859,1989.1,1988.7,71.25385]
[1617355445369,1.0122,1989.1,1989.0,2.90695]
[1617355445669,1.0011,1989.3,1989.0,4.32515]
[1617355445869,5.42291729,1989.5,1989.1,76.998]
[1617355446068,5.42291729,1989.5,1989.2,2.0]
[1617355446271,2.571,1990.1,1989.2,32.0]
[1617355446472,2.571,1990.1,1989.9,76.9856]
[1617355446672,2.92035475,1990.5,1989.9,76.9856]
[1617355446873,2.9208334,1990.6,1989.9,78.8601]
[1617355447271,2.9208334,1990.6,1990.5,1.72255819]
[1617355447471,19.36499732,1990.7,1990.5,1.72255819]
[1617355447870,5.82809732,1990.7,1990.5,1.72255819]
[1617355448072,2.90695,1990.7,1990.5,1.72255819]
[1617355453479,4.95356577,1990.7,1990.5,1.72255819]
[1617355454484,2.90695,1990.7,1990.5,1.72255819]
[1617355455281,1.90255,1990.7,1990.5,1.72255819]
[1617355457182,0.9962,1991.3,1990.5,1.72255819]
[1617355457381,0.9962,1991.3,1991.2,2.90695]
[1617355457580,0.9962,1991.3,1991.2,4.65955]
[1617355458780,0.9962,1991.3,1991.2,2.90695]
[1617355459488,3.90315,1991.3,1991.2,2.90695]
[1617355459682,3.90315,1991.3,1991.2,4.59165]
[1617355460703,3.90315,1991.3,1991.2,2.90695]
[1617355461290,3.90315,1991.3,1989.9,75.1383]
[1617355461500,33.0035,1991.3,1990.8,2.90695]
[1617355462285,31.9991,1991.3,1990.8,2.90695]
[1617355463587,2.90695,1990.9,1990.8,2.90695]
[1617355463788,3.90825,1990.9,1990.8,2.90695]
[1617355463987,5.82305,1990.9,1990.8,2.90695]
[1617355464189,64.1106,1990.8,1989.3,64.3301]
[1617355465599,64.1106,1990.8,1990.6,2.90695]
[1617355465791,30.9931,1990.9,1990.6,2.90695]
[1617355467596,1.0013,1990.9,1990.8,2.90695]
[1617355469196,1.0013,1990.9,1990.8,2.65595]
[1617355469396,1.0085,1991.0,1990.8,2.65595]
[1617355469594,2.90695,1990.9,1990.8,2.65595]
[1617355470494,34.41805,1990.9,1988.7,1.5159]
[1617355470695,30.0,1990.7,1989.0,2.0]
[1617355471694,30.0,1990.7,1990.2,2.90695]
[1617355472895,1.9994,1991.0,1990.2,2.90695]